bitfinex/quotes_SOLUSD_20220130
["timestamp","ask_amount","ask_price","bid_price","bid_amount"]
[1643574712867,16.205,92.64,92.565,0.45]
[1643574713069,37.67735041,92.639,92.58,16.206]
[1643574713266,37.67735041,92.639,92.581,0.45]
[1643574713467,69.564,92.67,92.58,108.2]
[1643574713468,16.203,92.65,92.58,108.2]
[1643574713666,1.49655942,92.652,92.565,0.45]
[1643574713667,1.49655942,92.652,92.582,110.50663291]
[1643574713867,1.49655942,92.666,92.583,0.45]
[1643574714166,1.49655942,92.669,92.61,16.199]
[1643574714367,36.29004857,92.668,92.611,23.3687]
[1643574714768,1.49655942,92.673,92.611,23.3687]
[1643574714969,1.49655942,92.673,92.612,2.30663291]
[1643574715172,1.49655942,92.675,92.612,2.30663291]
[1643574715367,1.49655942,92.678,92.62,16.198]
[1643574715568,1.49655942,92.683,92.62,16.198]
[1643574715867,43.71734442,92.682,92.62,16.198]
[1643574716067,42.220785,92.682,92.62,15.698]
[1643574717069,16.198,92.68,92.62,15.698]
[1643574720971,16.198,92.68,92.612,23.1572]
[1643574722575,16.199,92.67,92.612,23.1572]
[1643574722977,16.199,92.67,92.62,16.198]
[1643574723175,1.49655942,92.679,92.62,16.198]
[1643574723375,42.220785,92.682,92.62,16.198]
[1643574723775,42.220785,92.682,92.621,0.25]
[1643574724175,42.220785,92.682,92.63,16.196]
[1643574725075,16.197,92.68,92.63,16.196]
[1643574727380,42.220785,92.682,92.63,16.196]
[1643574727584,1.49655942,92.681,92.63,16.196]
[1643574727981,1.49655942,92.682,92.63,16.196]
[1643574728179,1.49655942,92.683,92.63,16.196]
[1643574728380,1.49655942,92.683,92.631,0.25]
[1643574728579,1.49655942,92.682,92.631,0.25]
[1643574728780,37.10475951,92.682,92.631,0.25]
[1643574729182,35.60820009,92.682,92.631,0.25]
[1643574729381,1.49655942,92.683,92.64,16.195]
[1643574729583,113.3,92.74,92.641,108.2]
[1643574729584,1.49655942,92.698,92.641,108.2]
[1643574729783,15.55,92.76,92.642,0.25]
[1643574729784,1.49655942,92.708,92.642,0.25]
[1643574729984,1.49655942,92.713,92.642,47.3089]
[1643574730186,1.49655942,92.711,92.643,108.2]
[1643574730486,1.49655942,92.711,92.644,0.25]
[1643574730684,1.49655942,92.711,92.67,16.189]
[1643574731186,1.49655942,92.715,92.67,16.189]
[1643574731385,1.49655942,92.719,92.67,16.189]
[1643574731585,1.49655942,92.721,92.671,0.25]
[1643574732184,33.09886171,92.72,92.671,0.25]
[1643574732384,1.49655942,92.721,92.671,0.25]
[1643574732585,1.49655942,92.722,92.68,16.188]
[1643574732785,1.49655942,92.735,92.681,0.25]
[1643574732987,1.49655942,92.739,92.69,6.0]
[1643574733187,1.49655942,92.748,92.69,6.0]
[1643574733385,1.49655942,92.748,92.692,108.2]
[1643574733584,2.988629,92.769,92.692,108.2]
[1643574733585,1.49655942,92.749,92.692,108.2]
[1643574733785,1.49655942,92.751,92.7,16.182]
[1643574734191,1.49655942,92.752,92.701,0.25]
[1643574734386,16.182,92.77,92.703,6.0]
[1643574734387,1.49655942,92.755,92.703,6.0]
[1643574734591,1.49655942,92.75,92.703,6.0]
[1643574734787,1.49655942,92.75,92.71,16.182]
[1643574735187,45.42782126,92.753,92.71,16.182]
[1643574735389,1.49655942,92.756,92.71,16.182]
[1643574735590,1.49655942,92.759,92.71,16.182]
[1643574735788,1.49655942,92.762,92.711,0.25]
[1643574735989,1.49655942,92.761,92.71,16.182]
[1643574736391,40.35143381,92.76,92.71,16.182]
[1643574736588,41.84799323,92.76,92.71,16.182]
[1643574736990,1.49655942,92.759,92.71,16.182]
[1643574737490,40.35143381,92.76,92.71,16.182]
[1643574738388,40.35143381,92.76,92.711,0.25]
[1643574739690,1.49655942,92.772,92.72,16.18]
[1643574739892,1.49655942,92.774,92.721,0.25]
[1643574740090,1.49655942,92.775,92.721,0.25]
[1643574740491,16.181,92.78,92.721,0.25]
[1643574740492,1.49655942,92.773,92.721,0.25]
[1643574740694,26.11852593,92.799,92.721,0.25]
[1643574740695,1.49655942,92.774,92.73,16.179]
[1643574740892,1.49655942,92.786,92.731,0.25]
[1643574741092,1.49655942,92.791,92.717,108.2]
[1643574741292,1.49655942,92.787,92.718,24.9079]
[1643574741495,1.49655942,92.786,92.718,24.9079]
[1643574741692,39.17119882,92.786,92.718,24.9079]
[1643574741893,1.49655942,92.785,92.718,24.9079]
[1643574742095,16.181,92.78,92.718,24.9079]
[1643574743295,16.181,92.78,92.72,16.181]
[1643574743592,39.17119882,92.786,92.72,16.181]
[1643574743794,1.49655942,92.785,92.721,0.25]
[1643574743993,39.17119882,92.786,92.721,0.25]
[1643574744193,39.17119882,92.786,92.721,2.55657562]
[1643574744394,39.17119882,92.786,92.721,0.25]
[1643574744794,39.17119882,92.786,92.719,0.25]
[1643574744996,1.49655942,92.785,92.73,16.179]
[1643574745198,37.6746394,92.786,92.73,16.179]
[1643574745501,37.6746394,92.786,92.731,0.25]
[1643574745898,1.49655942,92.788,92.731,0.25]
[1643574746096,1.49655942,92.792,92.74,16.177]
[1643574746326,1.49655942,92.792,92.741,23.6372]
[1643574746496,1.49655942,92.791,92.741,23.6372]
[1643574747298,16.177,92.8,92.741,23.6372]
[1643574747299,1.49655942,92.792,92.741,23.6372]
[1643574747499,36.4440499,92.79,92.741,23.6372]
[1643574747696,37.94060932,92.79,92.741,23.6372]
[1643574748098,36.4440499,92.79,92.742,0.25]
[1643574748898,1.49655942,92.792,92.742,0.25]
[1643574749301,1.49655942,92.792,92.751,6.0]
[1643574749501,1.49655942,92.816,92.753,6.0]
[1643574749703,1.49655942,92.817,92.743,2.30657562]
[1643574749902,35.28477322,92.811,92.742,108.45]
[1643574750102,1.49655942,92.81,92.742,108.45]
[1643574750302,1.49655942,92.808,92.742,108.2]
[1643574750604,1.49655942,92.808,92.741,23.6372]
[1643574750605,1.49655942,92.815,92.743,2.30657562]
[1643574750802,1.49655942,92.811,92.743,2.30657562]
[1643574751004,2.97425595,92.839,92.742,108.2]
[1643574751005,1.49655942,92.809,92.742,108.2]
[1643574751507,36.00037674,92.809,92.76,16.172]
[1643574752102,36.00037674,92.809,92.743,0.25]
[1643574753107,37.49693616,92.809,92.75,16.176]
[1643574753308,37.49693616,92.809,92.751,0.25]
[1643574753510,1.49655942,92.808,92.751,0.25]
[1643574753708,36.00037674,92.809,92.75,16.176]
[1643574753931,36.00037674,92.809,92.624,2.94998268]
[1643574753932,37.49693616,92.809,92.722,2.30657562]
[1643574754230,1.49655942,92.798,92.71,16.182]
[1643574754429,1.49655942,92.794,92.71,16.182]
[1643574754630,1.49655942,92.791,92.673,24.3507]
[1643574754831,53.95,92.78,92.68,53.941]
[1643574755033,1.49655942,92.777,92.68,53.941]
[1643574755230,1.49655942,92.776,92.68,53.941]
[1643574755431,16.183,92.77,92.69,16.186]
[1643574755631,1.49655942,92.768,92.69,16.186]
[1643574755836,1.49655942,92.768,92.673,24.3507]
[1643574756035,1.49655942,92.766,92.673,24.3507]
[1643574756332,1.49655942,92.765,92.673,24.3507]
[1643574756534,1.49655942,92.763,92.673,24.3507]
[1643574756934,1.49655942,92.762,92.673,24.3507]
[1643574757233,33.51620395,92.749,92.68,16.188]
[1643574758034,33.51620395,92.749,92.7,16.182]
[1643574758234,33.51620395,92.749,92.681,20.77956241]
[1643574758435,33.51620395,92.749,92.673,24.3507]
[1643574759234,33.51620395,92.749,92.652,26.88747562]
[1643574759235,16.188,92.74,92.652,2.30657562]
[1643574759438,1.49655942,92.738,92.652,2.30657562]
[1643574759836,1.49655942,92.727,92.652,2.30657562]
[1643574760036,33.51620395,92.749,92.652,2.30657562]
[1643574760037,1.49655942,92.726,92.652,2.30657562]
[1643574760236,16.195,92.72,92.652,2.30657562]
[1643574760536,37.98299985,92.719,92.652,2.30657562]
[1643574761338,37.98299985,92.719,92.653,0.25]
[1643574762538,37.98299985,92.719,92.643,23.926]
[1643574762539,37.98299985,92.719,92.66,16.192]
[1643574762938,37.98299985,92.719,92.661,2.30657562]
[1643574763438,37.98299985,92.719,92.647,2.30657562]
[1643574763840,37.98299985,92.719,92.648,0.25]
[1643574764438,37.98299985,92.719,92.648,2.55657562]
[1643574764839,37.98299985,92.719,92.65,16.193]
[1643574765340,37.98299985,92.719,92.651,2.55657562]
[1643574765738,37.98299985,92.719,92.652,2.30657562]
[1643574766138,37.98299985,92.719,92.66,16.191]
[1643574767941,37.98299985,92.719,92.67,16.189]
[1643574768340,1.49655942,92.734,92.67,16.189]
[1643574768541,1.49655942,92.732,92.68,6.0]
[1643574768742,1.49655942,92.751,92.68,6.0]
[1643574769044,1.49655942,92.758,92.681,8.55657562]
[1643574769241,1.49655942,92.762,92.681,8.30657562]
[1643574769442,41.19213091,92.761,92.682,2.55657562]
[1643574769643,41.19213091,92.761,92.692,6.0]
[1643574769842,1.49655942,92.767,92.693,108.45]
[1643574770043,1.49655942,92.767,92.7,16.179]
[1643574770243,1.49655942,92.77,92.7,16.179]
[1643574770443,1.49655942,92.77,92.71,6.0]
[1643574770843,42.98451228,92.773,92.711,2.55657562]
[1643574771043,1.49655942,92.771,92.72,16.179]
[1643574771242,1.49655942,92.77,92.72,16.179]
[1643574771843,1.49655942,92.771,92.721,0.25]
[1643574772043,1.49655942,92.772,92.721,0.25]
[1643574772243,1.49655942,92.772,92.73,16.179]
[1643574772742,1.49655942,92.772,92.721,0.25]
[1643574772942,16.182,92.77,92.68,53.942]
[1643574773143,1.49655942,92.764,92.683,40.93274658]
[1643574773343,1.49655942,92.764,92.71,16.182]
[1643574773544,1.49655942,92.761,92.71,16.182]
[1643574773742,1.49655942,92.762,92.71,16.182]
[1643574773942,1.49655942,92.763,92.71,16.182]
[1643574774143,1.49655942,92.762,92.71,16.182]
[1643574774346,1.49655942,92.761,92.71,16.182]
[1643574774942,1.49655942,92.762,92.71,16.182]
[1643574775542,16.184,92.76,92.7,16.185]
[1643574776848,1.49655942,92.762,92.701,0.25]
[1643574777044,1.49655942,92.768,92.71,16.182]
[1643574777243,1.49655942,92.769,92.71,16.182]
[1643574777443,1.49655942,92.769,92.711,0.25]
[1643574778043,1.49655942,92.768,92.711,0.25]
[1643574778244,1.49655942,92.769,92.72,16.181]
[1643574778644,41.48795286,92.773,92.721,0.25]
[1643574779845,41.48795286,92.773,92.714,0.25]
[1643574780044,41.48795286,92.773,92.73,16.179]
[1643574780244,1.49655942,92.778,92.73,16.179]
[1643574780445,16.179,92.79,92.731,0.25]
[1643574780446,1.49655942,92.781,92.731,0.25]
[1643574780649,1.49655942,92.783,92.731,0.25]
[1643574781051,47.8203,92.835,92.736,6.0]
[1643574781052,1.49655942,92.787,92.736,6.0]
[1643574781352,1.49655942,92.787,92.737,0.25]
[1643574781550,1.49655942,92.787,92.731,0.25]
[1643574781953,1.49655942,92.788,92.732,2.30657562]
[1643574782152,1.49655942,92.788,92.74,16.178]
[1643574782349,1.49655942,92.787,92.741,0.25]
[1643574782552,1.49655942,92.788,92.74,16.178]
[1643574782752,1.49655942,92.787,92.74,16.178]
[1643574782953,1.49655942,92.786,92.74,16.178]
[1643574783552,40.2646391,92.795,92.74,16.178]
[1643574783553,1.49655942,92.787,92.74,16.178]
[1643574783753,1.49655942,92.787,92.741,0.25]
[1643574783952,1.49655942,92.787,92.74,16.178]
[1643574784755,1.49655942,92.785,92.74,16.178]
[1643574785758,1.49655942,92.787,92.74,16.178]
[1643574785958,1.49655942,92.786,92.74,16.178]
[1643574786158,1.49655942,92.787,92.74,16.178]
[1643574786358,1.49655942,92.789,92.74,16.178]
[1643574786558,1.49655942,92.79,92.74,16.178]
[1643574786761,1.49655942,92.789,92.73,16.179]
[1643574786964,1.49655942,92.789,92.7,53.93]
[1643574787361,1.49655942,92.776,92.7,53.93]
[1643574787583,1.49655942,92.774,92.7,53.93]
[1643574788083,1.49655942,92.775,92.7,53.93]
[1643574788285,1.49655942,92.776,92.701,108.45]
[1643574788584,1.49655942,92.777,92.702,47.7526]
[1643574788784,1.49655942,92.778,92.703,108.45]
[1643574788985,1.49655942,92.776,92.71,16.183]
[1643574789385,1.49655942,92.784,92.72,59.92]
[1643574789584,1.49655942,92.788,92.721,23.7613]
[1643574789786,1.49655942,92.788,92.721,26.31787562]
[1643574789986,1.49655942,92.788,92.722,108.2]
[1643574790488,1.49655942,92.788,92.731,108.2]
[1643574790886,1.49655942,92.788,92.732,25.80937562]
[1643574791084,2.98742517,92.809,92.732,25.80937562]
[1643574791085,1.49655942,92.79,92.732,25.80937562]
[1643574791289,1.49655942,92.791,92.733,110.50657562]
[1643574791685,1.49655942,92.792,92.734,2.30657562]
[1643574791887,1.49655942,92.791,92.734,2.30657562]
[1643574792087,1.49655942,92.791,92.74,16.176]
[1643574793290,1.49655942,92.789,92.74,16.176]
[1643574793488,1.49655942,92.79,92.75,16.176]
[1643574793688,1.49655942,92.796,92.75,16.176]
[1643574793889,1.49655942,92.797,92.751,0.25]
[1643574794388,1.49655942,92.796,92.751,0.25]
[1643574794790,1.49655942,92.796,92.735,0.25]
[1643574794988,1.49655942,92.792,92.76,16.174]
[1643574795189,1.49655942,92.793,92.76,16.174]
[1643574796488,1.49655942,92.789,92.76,16.174]
[1643574797292,1.49655942,92.795,92.77,16.169]
[1643574797490,1.49655942,92.806,92.77,16.169]
[1643574797690,1.49655942,92.823,92.78,6.0]
[1643574797889,1.49655942,92.822,92.781,0.25]
[1643574798089,1.49655942,92.818,92.781,8.55657562]
[1643574798290,1.49655942,92.821,92.79,16.167]
[1643574798589,1.49499407,92.843,92.8,6.0]
[1643574798793,23.7971,92.919,92.801,108.45]
[1643574798794,1.49499407,92.856,92.801,108.45]
[1643574798990,4.44593676,92.908,92.801,108.45]
[1643574798991,1.49499407,92.862,92.801,175.22557562]
[1643574799190,1.49499407,92.869,92.801,166.919]
[1643574799391,1.49499407,92.87,92.82,16.158]
[1643574799592,1.49499407,92.875,92.83,6.0]
[1643574799793,44.16270023,92.892,92.83,6.0]
[1643574799794,1.49499407,92.876,92.831,108.45]
[1643574800192,1.49499407,92.881,92.831,108.45]
[1643574800392,1.49499407,92.896,92.833,108.2]
[1643574800793,1.49499407,92.896,92.834,0.25]
[1643574800996,42.5632729,92.899,92.84,16.158]
[1643574801194,42.5632729,92.899,92.832,24.6111]
[1643574801598,1.49499407,92.894,92.832,24.6111]
[1643574801794,42.5632729,92.899,92.832,24.6111]
[1643574801994,16.162,92.89,92.832,24.6111]
[1643574802194,16.162,92.89,92.83,16.162]
[1643574805297,16.162,92.89,92.82,16.164]
[1643574806899,16.162,92.89,92.821,0.25]
[1643574807701,16.162,92.89,92.82,16.164]
[1643574808499,16.162,92.89,92.811,24.7965]
[1643574808699,16.162,92.89,92.812,0.25]
[1643574809799,16.162,92.89,92.811,0.25]
[1643574810401,16.162,92.89,92.82,16.163]
[1643574810603,16.162,92.89,92.821,23.6488]
[1643574810804,16.162,92.89,92.821,23.8988]
[1643574812404,16.162,92.89,92.821,23.6488]
[1643574813906,16.162,92.89,92.83,16.161]
[1643574814304,16.162,92.89,92.831,0.25]
[1643574815907,16.162,92.89,92.83,16.161]
[1643574817509,16.162,92.89,92.821,23.6488]
[1643574817710,16.162,92.89,92.822,0.25]
[1643574819710,1.49499407,92.889,92.822,0.25]
[1643574819912,16.164,92.88,92.822,0.25]
[1643574822414,1.49499407,92.879,92.822,0.25]
[1643574822716,1.49499407,92.878,92.822,0.25]
[1643574822913,1.49499407,92.877,92.822,0.25]
[1643574823117,1.49499407,92.878,92.822,0.25]
[1643574824417,1.49499407,92.871,92.822,0.25]
[1643574824617,35.13401739,92.87,92.822,0.25]
[1643574825216,33.63902332,92.87,92.822,0.25]
[1643574826218,35.13401739,92.87,92.822,0.25]
[1643574826418,1.49499407,92.858,92.822,0.25]
[1643574827021,1.49499407,92.859,92.822,0.25]
[1643574827421,1.49499407,92.864,92.822,0.25]
[1643574827821,1.49499407,92.862,92.822,0.25]
[1643574828226,1.49499407,92.861,92.822,0.25]
[1643574828424,1.49499407,92.854,92.822,0.25]
[1643574828848,1.49499407,92.853,92.822,0.25]
[1643574829048,1.49499407,92.854,92.822,0.25]
[1643574829250,1.49499407,92.853,92.822,0.25]
[1643574830550,1.49499407,92.852,92.822,0.25]
[1643574830752,1.49499407,92.851,92.822,0.25]
[1643574830951,1.49499407,92.852,92.822,0.25]
[1643574831153,1.49499407,92.853,92.822,0.25]
[1643574831453,1.49499407,92.852,92.83,16.162]
[1643574831856,1.49499407,92.854,92.83,16.162]
[1643574832453,1.49499407,92.855,92.83,16.162]
[1643574832858,1.49499407,92.855,92.822,0.25]
[1643574833052,45.91391146,92.856,92.688,11.25570485]
[1643574833053,1.49499407,92.853,92.79,53.88]
[1643574833256,1.49499407,92.842,92.792,24.8018]
[1643574833454,1.49499407,92.848,92.792,24.8018]
[1643574833654,1.49499407,92.849,92.792,24.8018]
[1643574833855,1.49499407,92.849,92.793,2.30657562]
[1643574834056,1.49499407,92.845,92.793,2.30657562]
[1643574834256,1.49499407,92.844,92.8,16.167]
[1643574834656,1.49499407,92.847,92.801,0.25]
[1643574834856,1.49499407,92.847,92.794,0.25]
[1643574835056,1.49499407,92.844,92.794,0.25]
[1643574835258,1.49499407,92.847,92.795,2.29939755]
[1643574835456,1.49499407,92.848,92.81,16.164]
[1643574835656,1.49499407,92.848,92.811,24.3955]
[1643574835859,1.49499407,92.848,92.811,24.6455]
[1643574836056,1.49499407,92.849,92.811,24.6455]
[1643574836257,1.49499407,92.851,92.811,24.6455]
[1643574836455,1.49499407,92.854,92.811,24.6455]
[1643574836656,1.49499407,92.852,92.811,24.6455]
[1643574837057,1.49499407,92.852,92.82,16.161]
[1643574837257,1.49499407,92.853,92.821,0.25]
[1643574837658,1.49499407,92.856,92.821,0.25]
[1643574837860,1.49499407,92.855,92.821,0.25]
[1643574838559,1.49499407,92.855,92.83,16.16]
[1643574838757,1.49499407,92.852,92.83,16.16]
[1643574838958,1.49499407,92.857,92.831,0.25]
[1643574839157,1.49499407,92.857,92.79,69.43]
[1643574839357,1.49499407,92.856,92.796,23.6124]
[1643574839659,1.49499407,92.842,92.8,16.167]
[1643574839857,1.49499407,92.837,92.8,16.167]
[1643574841260,1.49499407,92.837,92.82,16.163]
[1643574841458,1.49499407,92.842,92.82,16.163]
[1643574841660,1.49499407,92.848,92.82,16.163]
[1643574841859,2.98332593,92.874,92.82,16.163]
[1643574841860,1.49499407,92.847,92.82,16.163]
[1643574842060,1.49499407,92.853,92.82,16.163]
[1643574842260,3.00143085,92.898,92.821,22.9408]
[1643574842261,1.49499407,92.852,92.821,22.9408]
[1643574842560,1.49499407,92.853,92.821,22.9408]
[1643574842960,1.49499407,92.852,92.821,22.9408]
[1643574843363,1.49499407,92.851,92.821,22.9408]
[1643574843561,1.49499407,92.85,92.821,22.9408]
[1643574844163,1.49499407,92.854,92.821,22.9408]
[1643574844762,1.49499407,92.854,92.83,16.163]
[1643574844963,1.49499407,92.861,92.83,16.163]
[1643574845164,1.49499407,92.861,92.831,0.25]
[1643574845362,1.49499407,92.862,92.831,0.25]
[1643574846164,1.49499407,92.861,92.831,0.25]
[1643574846368,1.49499407,92.86,92.83,16.162]
[1643574846566,1.49499407,92.858,92.83,16.162]
[1643574847568,1.49499407,92.857,92.83,16.162]
[1643574848567,1.49499407,92.855,92.83,16.162]
[1643574848972,1.49499407,92.852,92.821,22.6908]
[1643574849168,1.49499407,92.85,92.82,16.164]
[1643574850173,1.49499407,92.849,92.81,16.166]
[1643574850368,1.49499407,92.842,92.81,16.166]
[1643574850569,43.98409685,92.844,92.81,16.166]
[1643574850768,1.49499407,92.84,92.81,16.166]
[1643574850970,1.49499407,92.841,92.81,16.166]
[1643574851370,1.49499407,92.844,92.81,16.166]
[1643574851768,3.00110339,92.869,92.811,0.25]
[1643574851769,1.49499407,92.847,92.811,0.25]
[1643574851970,1.49499407,92.849,92.811,0.25]
[1643574852170,1.49499407,92.85,92.82,16.164]
[1643574852371,1.49499407,92.853,92.82,16.164]
[1643574852972,1.49499407,92.846,92.82,16.164]
[1643574853170,1.49499407,92.846,92.8,6.0]
[1643574853171,1.49499407,92.848,92.81,16.165]
[1643574853571,1.49499407,92.846,92.81,16.165]
[1643574853771,1.49499407,92.847,92.81,16.165]
[1643574856377,1.49499407,92.847,92.8,22.167]
[1643574856775,1.49499407,92.849,92.801,0.25]
[1643574856974,1.49499407,92.852,92.801,0.25]
[1643574857172,1.49499407,92.85,92.8,6.0]
[1643574857371,1.49499407,92.85,92.792,24.0423]
[1643574857574,1.49499407,92.847,92.8,16.167]
[1643574857973,1.49499407,92.845,92.8,16.167]
[1643574858776,1.49499407,92.848,92.81,16.165]
[1643574858974,1.49499407,92.849,92.81,16.165]
[1643574861573,1.49499407,92.852,92.81,16.165]
[1643574861773,1.49499407,92.851,92.82,16.164]
[1643574861977,1.49499407,92.85,92.82,16.164]
[1643574862174,1.49499407,92.849,92.811,23.7962]
[1643574862375,1.49499407,92.848,92.811,23.7962]
[1643574862674,16.166,92.86,92.811,23.7962]
[1643574862675,1.49499407,92.847,92.811,23.7962]
[1643574863879,1.49499407,92.847,92.82,16.164]
[1643574864073,54.25168002,92.87,92.82,16.164]
[1643574864074,1.49499407,92.849,92.82,16.164]
[1643574864274,1.49499407,92.85,92.82,16.164]
[1643574864477,1.49499407,92.851,92.82,16.164]
[1643574865375,1.49499407,92.85,92.82,16.164]
[1643574866175,1.49499407,92.853,92.82,16.164]
[1643574867176,1.49499407,92.857,92.82,16.164]
[1643574867377,1.49499407,92.854,92.82,16.164]
[1643574867775,38.9664551,92.853,92.82,16.164]
[1643574867976,1.49499407,92.854,92.811,23.7962]
[1643574868175,1.49499407,92.851,92.811,23.7962]
[1643574868576,1.49499407,92.852,92.811,23.7962]
[1643574869677,1.49499407,92.852,92.82,16.164]
[1643574870103,1.49499407,92.853,92.82,16.164]
[1643574871481,1.49499407,92.854,92.82,16.164]
[1643574873681,1.49499407,92.854,92.811,23.7962]
[1643574873882,1.49499407,92.853,92.811,23.7962]
[1643574874882,1.49499407,92.854,92.811,23.7962]
[1643574875485,1.49499407,92.854,92.82,16.164]
[1643574876887,1.49499407,92.853,92.82,16.164]
[1643574877086,55.13229002,92.87,92.82,16.164]
[1643574877087,1.49499407,92.854,92.82,16.164]
[1643574877490,1.49499407,92.855,92.82,16.164]
[1643574877705,1.49499407,92.854,92.82,16.164]
[1643574878906,1.49499407,92.855,92.82,16.164]
[1643574879107,55.13229002,92.87,92.82,16.164]
[1643574879108,1.49499407,92.861,92.82,16.164]
[1643574879308,1.49499407,92.86,92.82,16.164]
[1643574879509,1.49499407,92.861,92.82,16.164]
[1643574879709,1.49499407,92.859,92.82,16.164]
[1643574880511,1.49499407,92.859,92.811,23.7962]
[1643574880711,1.49499407,92.858,92.811,23.7962]
[1643574880913,1.49499407,92.857,92.811,23.7962]
[1643574881912,16.166,92.86,92.811,23.7962]
[1643574881913,1.49499407,92.858,92.811,23.7962]
[1643574882113,1.49499407,92.859,92.78,15.55]
[1643574882414,38.96829002,92.87,92.781,24.031]
[1643574882415,17.66299407,92.85,92.781,24.031]
[1643574882613,1.49499407,92.844,92.781,24.031]
[1643574882813,1.49499407,92.839,92.781,24.031]
[1643574883013,38.77955308,92.84,92.781,24.031]
[1643574883514,16.171,92.83,92.781,24.031]
[1643574885214,16.171,92.83,92.782,0.25]
[1643574885414,16.171,92.83,92.781,24.031]
[1643574886018,16.171,92.83,92.77,16.173]
[1643574886820,16.171,92.83,92.771,22.8265]
[1643574895829,1.49499407,92.836,92.78,16.172]
[1643574896031,1.49499407,92.849,92.781,6.0]
[1643574896231,1.49499407,92.854,92.782,22.5328]
[1643574896433,1.49499407,92.854,92.782,28.5328]
[1643574896631,1.49499407,92.854,92.783,108.45]
[1643574896833,1.49499407,92.855,92.783,110.74939755]
[1643574897032,1.49499407,92.855,92.784,2.29939755]
[1643574897233,1.49499407,92.857,92.784,2.29939755]
[1643574897432,1.49499407,92.857,92.8,16.166]
[1643574898133,1.49499407,92.858,92.8,16.166]
[1643574898532,43.71151225,92.859,92.8,16.166]
[1643574898533,45.20650632,92.859,92.8,16.166]
[1643574899434,1.49499407,92.859,92.8,16.166]
[1643574899634,1.49499407,92.859,92.801,22.8564]
[1643574899834,1.49499407,92.859,92.81,16.164]
[1643574900034,1.49499407,92.859,92.82,6.0]
[1643574900241,24.2205,92.915,92.821,108.2]
[1643574900242,1.49499407,92.879,92.821,108.2]
[1643574900541,1.49499407,92.883,92.821,108.45]
[1643574901544,1.49499407,92.883,92.83,16.16]
[1643574902141,1.49499407,92.884,92.83,16.16]
[1643574902343,1.49499407,92.883,92.83,16.16]
[1643574902944,1.49499407,92.884,92.83,16.16]
[1643574903148,16.162,92.88,92.83,16.16]
[1643574903969,1.49499407,92.894,92.83,16.16]
[1643574904168,1.49499407,92.893,92.831,23.2211]
[1643574904368,1.49499407,92.893,92.84,16.161]
[1643574904369,16.161,92.89,92.84,16.161]
[1643574906980,0.99499407,92.893,92.84,16.161]
[1643574907175,16.159,92.9,92.84,16.161]
[1643574911280,16.159,92.9,92.841,0.25]
[1643574911478,16.159,92.9,92.85,16.16]
[1643574912980,16.159,92.9,92.841,0.25]
[1643574913177,16.159,92.9,92.84,16.161]
[1643574913378,16.159,92.9,92.841,0.25]
[1643574914181,16.159,92.9,92.85,16.16]
[1643574917282,16.159,92.9,92.84,16.161]
[1643574917882,15.659,92.9,92.84,16.161]
[1643574925497,15.159,92.9,92.84,16.161]
[1643574926698,16.157,92.91,92.84,16.161]
[1643574927102,16.157,92.91,92.841,0.25]
[1643574927300,16.157,92.91,92.86,16.158]
[1643574927500,45.96304285,92.909,92.86,16.158]
[1643574927701,16.159,92.9,92.86,16.158]
[1643574927903,16.159,92.9,92.832,0.25]
[1643574928302,16.159,92.9,92.831,23.2211]
[1643574928507,16.159,92.9,92.832,0.25]
[1643574928702,16.159,92.9,92.84,16.162]